fUSD/lending_fUSD_20250620
["ID","MTS","AMOUNT","RATE_DAILY","PERIOD"]
[366714504,1750415671092,-1499.27,0.00030411,4]
[366714505,1750415671102,-1594.4,0.00030411,4]
[366714506,1750415671112,-1525.88,0.00030411,4]
[366714507,1750415671124,-18649.49,0.00030411,4]
[366714508,1750415671134,-662.4,0.00030411,4]
[366714509,1750415671144,-11431.71,0.00030411,4]
[366714510,1750415671155,-574.02,0.00030411,4]
[366714511,1750415671164,-2766.75,0.00030411,4]
[366714512,1750415671174,-1747.3,0.00030411,4]
[366714513,1750415671184,-490.0,0.00030411,4]
[366714514,1750415671194,-521.31,0.00030411,4]
[366714515,1750415671204,-1639.8,0.00030411,4]
[366714516,1750415671215,-641.47,0.00030411,4]
[366714517,1750415671225,-1452.7,0.00030411,4]
[366714518,1750415671235,-766.28,0.00030411,4]
[366714519,1750415671246,-1528.81,0.00030411,4]
[366714520,1750415671256,-2442.89,0.00030411,4]
[366714521,1750415671266,-490.0,0.00030411,4]
[366714522,1750415671276,-974.85,0.00030411,4]
[366714523,1750415671286,-525.8,0.00030411,4]
[366714524,1750415671296,-655.26,0.00030411,4]
[366714525,1750415671306,-6155.02,0.00030411,4]
[366714526,1750415671316,-1546.64,0.00030411,4]
[366714527,1750415671327,-952.09,0.00030411,4]
[366714528,1750415671338,-2556.54,0.00030411,4]
[366714529,1750415671348,-1078.67,0.00030411,4]
[366714530,1750415671358,-1698.38,0.00030411,4]
[366714531,1750415671368,-7770.54,0.00030411,4]
[366714532,1750415671379,-713.18,0.00030411,4]
[366714533,1750415671389,-1078.51,0.00030411,4]
[366714534,1750415671400,-565.57,0.00030411,4]
[366714535,1750415671410,-500.0,0.00030414,7]
[366714536,1750415671421,-490.0,0.00030421,4]
[366714537,1750415671431,-709.67,0.00030421,4]
[366714538,1750415671441,-490.0,0.00030421,4]
[366714539,1750415671451,-716.73,0.00030421,4]
[366714540,1750415671461,-879.88,0.00030421,4]
[366714541,1750415671471,-490.0,0.00030421,4]
[366714542,1750415671481,-490.0,0.00030421,4]
[366714543,1750415671492,-490.0,0.00030421,4]
[366714544,1750415671502,-496.54180263,0.00030421,4]
[366714545,1750415671512,-1218.9,0.00030421,4]
[366714546,1750415671523,-901.28,0.00030421,4]
[366714547,1750415671533,-507.19,0.00030421,4]
[366714548,1750415671543,-490.0,0.00030421,4]
[366714549,1750415671552,-584.6,0.00030421,4]
[366714550,1750415671562,-211.46658852,0.00030421,4]
[366714551,1750415671573,-490.0,0.00030421,4]
[366714552,1750415671583,-624.83,0.00030421,4]
[366714553,1750415671593,-947.23,0.00030421,4]
[366714554,1750415671603,-497.34,0.00030421,4]
[366714555,1750415671612,-1160.0,0.00030421,4]
[366714556,1750415671622,-682.25,0.00030421,4]
[366714557,1750415671632,-676.69,0.00030421,4]
[366714558,1750415671642,-798.57,0.00030421,4]
[366714559,1750415671652,-490.0,0.00030421,4]
[366714560,1750415671662,-490.0,0.00030421,4]
[366714561,1750415671672,-490.0,0.00030421,4]
[366714562,1750415671682,-490.0,0.00030421,4]
[366714563,1750415671692,-994.26,0.00030421,4]
[366714564,1750415671702,-490.0,0.00030421,4]
[366714565,1750415671712,-1262.16,0.00030421,4]
[366714566,1750415671723,-504.86,0.00030421,4]
[366714567,1750415671733,-526.89,0.00030421,4]
[366714568,1750415671743,-490.0,0.00030421,4]
[366714569,1750415671753,-562.08,0.00030421,4]
[366714570,1750415671763,-545.75,0.00030421,4]
[366714571,1750415671774,-1061.69,0.00030421,4]
[366714572,1750415671784,-809.96,0.00030421,4]
[366714573,1750415671794,-631.0,0.00030421,4]
[366714574,1750415671805,-1378.13,0.00030421,4]
[366714575,1750415671815,-490.0,0.00030421,4]
[366714576,1750415671825,-490.0,0.00030421,4]
[366714577,1750415671836,-490.0,0.00030421,4]
[366714578,1750415671847,-559.26,0.00030421,4]
[366714579,1750415671857,-707.03,0.00030421,4]
[366714580,1750415671867,-2021.51,0.00030421,4]
[366714581,1750415671877,-547.36,0.00030421,4]
[366714582,1750415671888,-494.59539015,0.00030421,4]
[366714583,1750415671899,-1831.85,0.00030421,4]
[366714584,1750415671909,-606.95,0.00030421,4]
[366714585,1750415671920,-1476.65,0.00030421,4]
[366714586,1750415671930,-1005.12,0.00030421,4]
[366714587,1750415671941,-1516.56,0.00030421,4]
[366714588,1750415671952,-600.95,0.00030421,4]
[366714589,1750415671963,-490.0,0.00030421,4]
[366714590,1750415671973,-490.0,0.00030421,4]
[366714591,1750415671984,-490.0,0.00030421,4]
[366714592,1750415671995,-302.3,0.00030421,4]
[366714593,1750415672004,-1853.92,0.00030421,4]
[366714594,1750415672015,-490.0,0.00030421,4]
[366714595,1750415672026,-1207.48,0.00030421,4]
[366714596,1750415672037,-970.42,0.00030421,4]
[366714597,1750415672048,-1085.47,0.00030421,4]
[366714598,1750415672058,-555.86,0.00030421,4]
[366714599,1750415672069,-1321.89,0.00030421,4]
[366714600,1750415672079,-907.27,0.00030421,4]
[366714601,1750415672089,-490.0,0.00030421,4]
[366714602,1750415672099,-490.0,0.00030421,4]
[366714603,1750415672109,-1835.37,0.00030421,4]
[366714604,1750415672119,-490.0,0.00030421,4]
[366714605,1750415672130,-556.59,0.00030421,4]
[366714606,1750415672140,-1052.99,0.00030421,4]
[366714607,1750415672150,-490.0,0.00030421,4]
[366714608,1750415672159,-567.01,0.00030421,4]
[366714609,1750415672169,-492.0,0.00030421,4]
[366714610,1750415672179,-819.36,0.00030421,4]
[366714611,1750415672189,-2175.07,0.00030421,4]
[366714612,1750415672200,-490.0,0.00030421,4]
[366714613,1750415672209,-789.56,0.00030421,4]
[366714614,1750415672220,-1474.82,0.00030421,4]
[366714615,1750415672230,-490.0,0.00030421,4]
[366714616,1750415672240,-1752.57,0.00030421,4]
[366714617,1750415672253,-490.0,0.00030421,4]
[366714618,1750415672264,-490.0,0.00030421,4]
[366714619,1750415672274,-2581.66,0.00030421,4]
[366714620,1750415672284,-490.0,0.00030421,4]
[366714621,1750415672295,-1705.52,0.00030421,4]
[366714622,1750415672305,-1306.7,0.00030421,4]
[366714623,1750415672315,-525.6,0.00030421,4]
[366714624,1750415672326,-737.94,0.00030421,4]
[366714625,1750415672337,-490.0,0.00030421,4]
[366714626,1750415672347,-490.0,0.00030421,4]
[366714627,1750415672359,-616.11,0.00030421,4]
[366714628,1750415672370,-749.2,0.00030421,4]
[366714629,1750415672381,-1450.49,0.00030421,4]
[366714630,1750415672392,-733.41,0.00030421,4]
[366714631,1750415672402,-490.0,0.00030421,4]
[366714632,1750415672413,-2517.34,0.00030421,4]
[366714633,1750415672424,-647.98,0.00030421,4]
[366714634,1750415672433,-1420.61,0.00030421,4]
[366714635,1750415672443,-666.21,0.00030421,4]
[366714636,1750415672454,-490.0,0.00030421,4]
[366714637,1750415672463,-798.3,0.00030421,4]
[366714638,1750415672474,-490.0,0.00030421,4]
[366714639,1750415672484,-490.0,0.00030421,4]
[366714640,1750415672494,-629.3,0.00030421,4]
[366714641,1750415672504,-744.22,0.00030421,4]
[366714642,1750415672515,-490.0,0.00030421,4]
[366714643,1750415672525,-824.71,0.00030421,4]
[366714644,1750415672535,-1579.86,0.00030421,4]
[366714645,1750415672546,-509.05,0.00030421,4]
[366714646,1750415672556,-2238.49,0.00030421,4]
[366714647,1750415672565,-597.0,0.00030421,4]
[366714648,1750415672575,-490.0,0.00030421,4]
[366714649,1750415672586,-933.51,0.00030421,4]
[366714650,1750415672596,-822.58,0.00030421,4]
[366714651,1750415672606,-838.77,0.00030421,4]
[366714652,1750415672616,-504.68,0.00030421,4]
[366714653,1750415672626,-507.81,0.00030421,4]
[366714654,1750415672636,-494.57746032,0.00030421,4]
[366714655,1750415672646,-572.5,0.00030421,4]
[366714656,1750415672656,-490.0,0.00030421,4]
[366714657,1750415672667,-1129.55,0.00030421,4]
[366714658,1750415672676,-858.91,0.00030421,4]
[366714659,1750415672686,-490.0,0.00030421,4]
[366714660,1750415672696,-800.69,0.00030421,4]
[366714661,1750415672705,-1036.77,0.00030421,4]
[366714662,1750415672715,-528.31557453,0.00030421,4]
[366714663,1750415672725,-1310.63,0.00030421,4]
[366714664,1750415672734,-867.83,0.00030421,4]
[366714665,1750415672745,-1236.78,0.00030421,4]
[366714666,1750415672755,-545.19,0.00030421,4]
[366714667,1750415672765,-490.0,0.00030421,4]
[366714668,1750415672775,-509.27,0.00030421,4]
[366714669,1750415672785,-1804.01,0.00030421,4]
[366714670,1750415672795,-1718.47,0.00030421,4]
[366714671,1750415672804,-528.49,0.00030421,4]
[366714672,1750415672814,-490.0,0.00030421,4]
[366714673,1750415672824,-808.69,0.00030421,4]
[366714674,1750415672834,-441.71209097,0.00030421,4]
[366714675,1750415672844,-490.0,0.00030421,4]
[366714676,1750415672854,-726.13,0.00030421,4]
[366714677,1750415672863,-490.0,0.00030422,4]
[366714678,1750415672874,-924.0,0.00030422,4]
[366714679,1750415672884,-354.36198593,0.00030422,4]
[366714680,1750415672894,-555.64,0.00030422,4]
[366714681,1750415672904,-490.0,0.00030422,4]
[366714682,1750415672914,-560.67,0.00030422,4]
[366714683,1750415672925,-714.6,0.00030422,4]
[366714684,1750415672935,-490.0,0.00030422,4]
[366714685,1750415672945,-490.0,0.00030422,4]
[366714686,1750415673344,-584.97,0.00030422,4]
[366714687,1750415673366,-490.0,0.00030422,4]
[366714688,1750415673377,-528.72,0.00030422,4]
[366714689,1750415673388,-490.0,0.00030422,4]
[366714690,1750415673398,-490.0,0.00030422,4]
[366714691,1750415673408,-490.0,0.00030422,4]
[366714692,1750415673418,-595.37,0.00030422,4]
[366714693,1750415673429,-500.0,0.00030426,7]
[366714694,1750415673439,-150.0,0.00030438,7]
[366714695,1750415673449,-1335.72,0.000305,2]
[366714696,1750415673459,-821.31,0.000305,2]
[366714697,1750415673470,-1498.14,0.000305,2]
[366714698,1750415673480,-264.7,0.000305,2]
[366714699,1750415673490,-3339.99,0.000305,2]
[366714700,1750415673501,-500.0,0.00030523,7]
[366714701,1750415673511,-1000.0,0.00030542,2]
[366714702,1750415673522,-205.0,0.00030551,14]
[366714703,1750415673532,-242.09,0.00030587,120]
[366714704,1750415673543,-534.1,0.00030587,120]
[366714705,1750415673553,-120408.09,0.000306,7]
[366714706,1750415673565,-823.0,0.00030621,2]
[366714707,1750415673575,-855.14,0.00030653,4]
[366714708,1750415673585,-941.29,0.00030653,4]
[366714709,1750415673595,-710.39,0.00030663,4]
[366714710,1750415673605,-2657.88,0.00030663,4]
[366714711,1750415673615,-678.91,0.00030663,4]
[366714712,1750415673626,-951.97,0.00030663,4]
[366714713,1750415673636,-982.82,0.00030663,4]
[366714714,1750415673646,-934.95,0.00030663,4]
[366714715,1750415673656,-1196.7,0.00030663,4]
[366714716,1750415673666,-905.13,0.00030663,4]
[366714717,1750415673677,-733.67,0.00030663,4]
[366714718,1750415673687,-623.14,0.00030663,4]
[366714719,1750415673697,-858.58,0.00030663,4]
[366714720,1750415673707,-4996.22,0.00030663,4]
[366714721,1750415673718,-1411.02,0.00030663,4]
[366714722,1750415673728,-566.53,0.00030663,4]
[366714723,1750415673739,-673.04,0.00030663,4]
[366714724,1750415673750,-560.81,0.00030663,4]
[366714725,1750415673761,-5470.75,0.00030663,4]
[366714726,1750415673771,-608.76,0.00030663,4]
[366714727,1750415673781,-2781.24,0.00030663,4]
[366714728,1750415673793,-622.46,0.00030663,4]
[366714729,1750415673803,-2671.47,0.00030663,4]
[366714730,1750415673813,-807.14,0.00030663,4]
[366714731,1750415673824,-490.0,0.00030673,4]
[366714732,1750415673834,-490.0,0.00030673,4]
[366714733,1750415673844,-525.64,0.00030673,4]
[366714734,1750415673855,-490.0,0.00030673,4]
[366714735,1750415673866,-824.86,0.00030673,4]
[366714736,1750415673876,-490.0,0.00030673,4]
[366714737,1750415673886,-1042.35,0.00030673,4]
[366714738,1750415673897,-1129.83,0.00030673,4]
[366714739,1750415673907,-2063.423116,0.00030673,4]
[366714740,1750415673917,-490.0,0.00030673,4]
[366714741,1750415673928,-152.3464,0.00030673,4]
[366714742,1750415673938,-2980.629608,0.00030673,4]
[366714743,1750415673948,-1443.11,0.00030673,4]
[366714744,1750415673959,-6813.75,0.00030673,4]
[366714745,1750415673968,-977.73,0.00030673,4]
[366714746,1750415673979,-1060.66,0.00030673,4]
[366714747,1750415673989,-1271.04,0.00030673,4]
[366714748,1750415673999,-532.93926625,0.00030673,4]
[366714749,1750415674010,-1687.17,0.00030673,4]
[366714750,1750415674020,-1425.44,0.00030673,4]
[366714751,1750415674030,-1260.23,0.00030673,4]
[366714752,1750415674041,-535.62,0.00030673,4]
[366714753,1750415674051,-600.47,0.00030673,4]
[366714754,1750415674062,-219.85059052,0.00030673,4]
[366714755,1750415674072,-7447.5,0.00030673,4]
[366714756,1750415674083,-490.0,0.00030673,4]
[366714757,1750415674094,-490.0,0.00030673,4]
[366714758,1750415674104,-998.98,0.00030673,4]
[366714759,1750415674114,-1377.1,0.00030673,4]
[366714760,1750415674125,-4861.36,0.00030673,4]
[366714761,1750415674136,-1977.29,0.00030673,4]
[366714762,1750415674146,-1276.4,0.00030673,4]
[366714763,1750415674156,-2235.26,0.00030673,4]
[366714764,1750415674166,-2488.9,0.00030673,4]
[366714765,1750415674177,-1190.82,0.00030673,4]
[366714766,1750415674187,-712.91,0.00030673,4]
[366714767,1750415674197,-1879.2,0.00030673,4]
[366714768,1750415674209,-3348.43,0.00030673,4]
[366714769,1750415674219,-2145.92,0.00030673,4]
[366714770,1750415674229,-3119.56,0.00030673,4]
[366714771,1750415674239,-3273.4,0.00030673,4]
[366714772,1750415674249,-580.92787382,0.00030675,4]
[366714773,1750415674263,-527.18720163,0.00030675,4]
[366714774,1750415674273,-490.0,0.00030675,4]
[366714775,1750415674284,-1480.37,0.00030675,4]
[366714776,1750415674295,-1643.1,0.00030675,4]
[366714777,1750415674305,-565.51,0.00030675,4]
[366714778,1750415674315,-492.45,0.00030675,4]
[366714779,1750415674327,-2032.33,0.00030675,4]
[366714780,1750415674338,-880.4,0.00030675,4]
[366714781,1750415674349,-490.0,0.00030675,4]
[366714782,1750415674359,-1088.85,0.00030675,4]
[366714783,1750415674370,-848.08,0.00030675,4]
[366714784,1750415674381,-912.78,0.00030675,4]
[366714785,1750415674390,-1634.09,0.00030675,4]
[366714786,1750415674400,-1838.84,0.00030675,4]
[366714787,1750415674411,-895.29,0.00030675,4]
[366714788,1750415674422,-669.38,0.00030675,4]
[366714789,1750415674433,-818.8,0.00030675,4]
[366714790,1750415674443,-490.0,0.00030675,4]
[366714791,1750415674454,-1627.01,0.00030675,4]
[366714792,1750415674464,-490.0,0.00030675,4]
[366714793,1750415674475,-1078.58,0.00030675,4]
[366714794,1750415674485,-994.67,0.00030675,4]
[366714795,1750415674495,-771.65,0.00030675,4]
[366714796,1750415674505,-523.34,0.00030675,4]
[366714797,1750415674515,-694.41,0.00030675,4]
[366714798,1750415674525,-490.0,0.00030675,4]
[366714799,1750415674536,-679.99,0.00030675,4]
[366714800,1750415674548,-2362.55,0.00030675,4]
[366714801,1750415674559,-592.8,0.00030675,4]
[366714802,1750415674569,-542.79,0.00030675,4]
[366714803,1750415674579,-1385.22,0.00030675,4]
[366714804,1750415674589,-1591.3,0.00030675,4]
[366714805,1750415674599,-490.0,0.00030675,4]
[366714806,1750415674609,-1073.69,0.00030675,4]
[366714807,1750415674619,-616.36,0.00030675,4]
[366714808,1750415674629,-490.0,0.00030675,4]
[366714809,1750415674639,-583.29,0.00030675,4]
[366714810,1750415674649,-1175.68,0.00030675,4]
[366714811,1750415674659,-1312.24,0.00030675,4]
[366714812,1750415674670,-1363.77,0.00030675,4]
[366714813,1750415674680,-770.8,0.00030675,4]
[366714814,1750415674690,-997.01,0.00030675,4]
[366714815,1750415674700,-989.39,0.00030675,4]
[366714816,1750415674710,-567.86,0.00030675,4]
[366714817,1750415674720,-1096.04,0.00030675,4]
[366714818,1750415674730,-1520.45,0.00030675,4]
[366714819,1750415674740,-805.39,0.00030675,4]
[366714820,1750415674750,-490.0,0.00030675,4]
[366714821,1750415674761,-1428.58,0.00030675,4]
[366714822,1750415674771,-596.59,0.00030675,4]
[366714823,1750415674781,-5382.53,0.00030675,4]
[366714824,1750415674791,-703.96,0.00030675,4]
[366714825,1750415674801,-1669.54,0.00030675,4]
[366714826,1750415674811,-1601.56,0.00030675,4]
[366714827,1750415674820,-2721.61,0.00030675,4]
[366714828,1750415674830,-490.0,0.00030675,4]
[366714829,1750415674840,-741.54,0.00030675,4]
[366714830,1750415674850,-669.76,0.00030675,4]
[366714831,1750415674860,-1225.01,0.00030675,4]
[366714832,1750415674869,-2422.36,0.00030675,4]
[366714833,1750415674879,-1005.68,0.00030675,4]
[366714834,1750415674889,-2138.59,0.00030675,4]
[366714835,1750415674899,-998.16,0.00030675,4]
[366714836,1750415674909,-4396.87,0.00030675,4]
[366714837,1750415674919,-933.76,0.00030675,4]
[366714838,1750415674929,-897.22,0.00030675,4]
[366714839,1750415674939,-1489.74,0.00030675,4]
[366714840,1750415674948,-2632.99,0.00030675,4]
[366714841,1750415674958,-2115.45,0.00030675,4]
[366714842,1750415674968,-969.59,0.00030675,4]
[366714843,1750415674978,-1788.12,0.00030675,4]
[366714844,1750415674987,-587.84,0.00030675,4]
[366714845,1750415674997,-747.47,0.00030675,4]
[366714846,1750415675007,-629.05,0.00030675,4]
[366714848,1750415675017,-1158.39,0.00030675,4]
[366714849,1750415675027,-4900.18,0.00030675,4]
[366714850,1750415675036,-1552.28,0.00030675,4]
[366714851,1750415675046,-540.28,0.00030675,4]
[366714852,1750415675055,-1986.49,0.00030675,4]
[366714853,1750415675065,-2142.56,0.00030675,4]
[366714854,1750415675074,-675.46,0.00030675,4]
[366714855,1750415675084,-2131.24,0.00030675,4]
[366714856,1750415675093,-1335.47,0.00030675,4]
[366714857,1750415675103,-894.67,0.00030675,4]
[366714858,1750415675113,-3901.98,0.00030675,4]
[366714859,1750415675122,-694.78,0.00030675,4]
[366714860,1750415675132,-748.02,0.00030675,4]
[366714861,1750415675141,-2210.45,0.00030675,4]
[366714862,1750415675151,-1823.65,0.00030675,4]
[366714863,1750415675160,-1839.21,0.00030675,4]
[366714864,1750415675170,-951.3,0.00030675,4]
[366714865,1750415675179,-828.87,0.00030675,4]
[366714866,1750415675190,-828.66,0.00030675,4]
[366714867,1750415675199,-2336.71,0.00030675,4]
[366714868,1750415675209,-1193.56,0.00030675,4]
[366714869,1750415675218,-1201.91,0.00030675,4]
[366714870,1750415675228,-1533.32,0.00030675,4]
[366714871,1750415675237,-2402.13,0.00030675,4]
[366714872,1750415675247,-186.68342233,0.00030685,2]
[366714873,1750415675256,-582.83,0.00030685,4]
[366714874,1750415675266,-490.0,0.00030685,4]
[366714875,1750415675275,-536.23,0.00030685,4]
[366714876,1750415675285,-686.65,0.00030685,4]
[366714877,1750415675294,-897.84,0.00030685,4]
[366714878,1750415675304,-793.14,0.00030685,4]
[366714879,1750415675314,-656.19,0.00030685,4]
[366714880,1750415675323,-624.06,0.00030685,4]
[366714881,1750415675333,-499.96092441,0.00030685,4]
[366714882,1750415675343,-568.83,0.00030685,4]
[366714883,1750415675353,-402.69,0.00030685,4]
[366714884,1750415675362,-697.89,0.00030685,4]
[366714885,1750415675372,-490.0,0.00030685,4]
[366714886,1750415675381,-724.36,0.00030685,4]
[366714887,1750415675390,-1029.22,0.00030685,4]
[366714888,1750415675400,-490.0,0.00030685,4]
[366714889,1750415675409,-250.86560028,0.00030685,4]
[366714890,1750415675419,-490.0,0.00030685,4]
[366714891,1750415675428,-817.57,0.00030685,4]
[366714892,1750415675438,-490.0,0.00030685,4]
[366714893,1750415675447,-355.11886469,0.00030685,4]
[366714894,1750415675456,-490.0,0.00030685,4]
[366714895,1750415675466,-860.55,0.00030685,4]
[366714896,1750415675475,-500.62033417,0.00030685,4]
[366714897,1750415675485,-490.0,0.00030685,4]
[366714898,1750415675494,-490.0,0.00030685,4]
[366714899,1750415675504,-506.83155668,0.00030685,4]
[366714900,1750415675516,-650.85,0.00030685,4]
[366714901,1750415675526,-490.0,0.00030685,4]
[366714902,1750415675536,-666.55,0.00030685,4]
[366714903,1750415675545,-490.0,0.00030685,4]
[366714904,1750415675554,-490.0,0.00030685,4]
[366714905,1750415675564,-497.02,0.00030685,4]
[366714906,1750415675573,-490.0,0.00030685,4]
[366714907,1750415675583,-561.45,0.00030685,4]
[366714908,1750415675593,-490.0,0.00030685,4]
[366714909,1750415675603,-673.68,0.00030685,4]
[366714910,1750415675612,-798.5,0.00030685,4]
[366714911,1750415675622,-490.0,0.00030685,4]
[366714912,1750415675632,-490.0,0.00030685,4]
[366714913,1750415675641,-490.0,0.00030685,4]
[366714914,1750415675651,-814.97,0.00030685,4]
[366714915,1750415675661,-2237.34,0.00030685,4]
[366714916,1750415675670,-490.0,0.00030685,4]
[366714917,1750415675680,-997.34,0.00030685,4]
[366714918,1750415675690,-792.52,0.00030685,4]
[366714919,1750415675700,-490.0,0.00030685,4]
[366714920,1750415675709,-490.0,0.00030685,4]
[366714921,1750415675719,-749.65,0.00030685,4]
[366714922,1750415675728,-490.0,0.00030685,4]
[366714923,1750415675738,-574.08217026,0.00030685,4]
[366714924,1750415675748,-870.19,0.00030685,4]
[366714925,1750415675758,-661.75,0.00030685,4]
[366714926,1750415675768,-508.02,0.00030685,4]
[366714927,1750415675777,-505.96123828,0.00030685,4]
[366714928,1750415675787,-523.66645435,0.00030685,4]
[366714929,1750415675796,-1294.95,0.00030685,4]
[366714930,1750415675984,-490.0,0.00030685,4]
[366714931,1750415675996,-860.83,0.00030685,4]
[366714932,1750415676006,-1554.68,0.00030685,4]
[366714933,1750415676016,-686.43,0.00030685,4]
[366714934,1750415676026,-490.0,0.00030685,4]
[366714935,1750415676037,-620.11,0.00030685,4]
[366714936,1750415676047,-591.54,0.00030685,4]
[366714937,1750415676058,-1692.44,0.00030685,4]
[366714938,1750415676069,-757.27,0.00030685,4]
[366714939,1750415676080,-637.43861417,0.00030685,4]
[366714940,1750415676090,-1478.21,0.00030685,4]
[366714941,1750415676100,-1664.77,0.00030685,4]
[366714942,1750415676110,-509.73710664,0.00030685,4]
[366714943,1750415676120,-513.53,0.00030685,4]
[366714944,1750415676131,-1643.07,0.00030685,4]
[366714945,1750415676141,-2421.62,0.00030685,4]
[366714946,1750415676150,-501.27457911,0.00030685,4]
[366714947,1750415676160,-1171.85,0.00030685,4]
[366714948,1750415676170,-1002.75,0.00030685,4]
[366714949,1750415676179,-490.0,0.00030685,4]
[366714950,1750415676189,-490.0,0.00030685,4]
[366714951,1750415676199,-490.0,0.00030685,4]
[366714953,1750415676209,-1052.23,0.00030685,4]
[366714954,1750415676219,-513.94,0.00030685,4]
[366714955,1750415676230,-1203.58,0.00030685,4]
[366714956,1750415676239,-1052.12,0.00030685,4]
[366714957,1750415676251,-1116.54,0.00030685,4]
[366714958,1750415676263,-593.05,0.00030685,4]
[366714959,1750415676273,-713.86,0.00030685,4]
[366714960,1750415676283,-576.72,0.00030685,4]
[366714961,1750415676294,-1207.78,0.00030685,4]
[366714962,1750415676304,-490.0,0.00030685,4]
[366714963,1750415676314,-885.97,0.00030685,4]
[366714964,1750415676324,-1286.94,0.00030685,4]
[366714965,1750415676334,-774.59,0.00030685,4]
[366714966,1750415676344,-663.64,0.00030685,4]
[366714967,1750415676354,-689.38,0.00030685,4]
[366714968,1750415676364,-556.07,0.00030685,4]
[366714969,1750415676374,-929.62,0.00030685,4]
[366714970,1750415676384,-852.86,0.00030685,4]
[366714971,1750415676394,-540.11,0.00030685,4]
[366714972,1750415676404,-549.5,0.00030685,4]
[366714973,1750415676414,-719.33,0.00030685,4]
[366714974,1750415676424,-1178.9,0.00030685,4]
[366714975,1750415676433,-992.43,0.00030685,4]
[366714976,1750415676443,-165.9134658,0.00030685,4]
[366714977,1750415676453,-2120.13,0.00030685,4]
[366714978,1750415676462,-797.21,0.00030685,4]
[366714979,1750415676471,-2831.45,0.00030685,4]
[366714980,1750415676481,-1657.46,0.00030685,4]
[366714981,1750415676491,-1176.63,0.00030685,4]
[366714982,1750415676501,-640.77,0.00030685,4]
[366714983,1750415676510,-835.13,0.00030685,4]
[366714984,1750415676519,-955.18,0.00030685,4]
[366714985,1750415676529,-759.69,0.00030685,4]
[366714986,1750415676539,-495.19,0.00030685,4]
[366714987,1750415676548,-1620.75,0.00030685,4]
[366714988,1750415676558,-2608.35,0.00030685,4]
[366714989,1750415676567,-1487.07,0.00030685,4]
[366714990,1750415676576,-620.7,0.00030685,4]
[366714991,1750415676586,-2196.02,0.00030685,4]
[366714992,1750415676595,-2048.55,0.00030685,4]
[366714993,1750415676605,-1452.89,0.00030685,4]
[366714994,1750415676614,-676.1,0.00030685,4]
[366714995,1750415676624,-490.0,0.00030685,4]
[366714996,1750415676633,-3078.01,0.00030685,4]
[366714997,1750415676643,-729.0,0.00030685,4]
[366714998,1750415676653,-646.89,0.00030685,4]
[366714999,1750415676663,-500.5757449,0.00030685,4]
[366715000,1750415676675,-692.86,0.00030685,4]
[366715001,1750415676686,-1111.1,0.00030685,4]
[366715002,1750415676697,-726.03,0.00030685,4]
[366715003,1750415676710,-896.01,0.00030685,4]
[366715004,1750415676721,-522.54,0.00030685,4]
[366715005,1750415676732,-817.65,0.00030685,4]